fUSD/lending_fUSD_20240330
["ID","MTS","AMOUNT","RATE_DAILY","PERIOD"]
[321029211,1711803039724,-156.283579,0.00041662,4]
[321029212,1711803039735,-524.41611715,0.00041662,4]
[321029213,1711803039745,-359.52635619,0.00041662,4]
[321029214,1711803039755,-530.72631733,0.00041662,4]
[321029215,1711803039765,-195.56815547,0.00041662,4]
[321029216,1711803039774,-4436.98861155,0.00041662,4]
[321029217,1711803039784,-155.90864369,0.00041662,4]
[321029218,1711803039793,-169.12911613,0.00041662,4]
[321029219,1711803039802,-1563.58455512,0.00041662,4]
[321029220,1711803039812,-156.24011391,0.00041662,4]
[321029222,1711803039821,-477.53316459,0.00041662,4]
[321029224,1711803039830,-155.0,0.00041662,4]
[321029226,1711803039840,-343.08201747,0.00041662,4]
[321029227,1711803039859,-516.2241065,0.00041662,4]
[321029228,1711803039869,-3119.26530223,0.00041662,4]
[321029230,1711803039878,-230.710396,0.00041662,4]
[321029231,1711803039887,-272.77183676,0.00041662,4]
[321029232,1711803039896,-268.91317088,0.00041662,4]
[321029233,1711803039906,-155.0,0.00041662,4]
[321029234,1711803039919,-283.79529727,0.00041662,4]
[321029236,1711803039929,-238.40860617,0.00041662,4]
[321029238,1711803039939,-557.00446148,0.00041662,4]
[321029240,1711803039948,-500.5911669,0.00041662,2]
[321029242,1711803039957,-500.0,0.00041662,2]
[321029244,1711803039966,-548.87646135,0.00041662,2]
[321029246,1711803039976,-396.95025573,0.00041662,2]
[321029248,1711803039985,-615.26,0.00041662,4]
[321029250,1711803039995,-500.0,0.00041662,4]
[321029252,1711803040004,-500.69162944,0.00041662,2]
[321029254,1711803040014,-722.99,0.00041662,4]
[321029256,1711803040023,-500.0,0.00041662,2]
[321029258,1711803040032,-434.19933751,0.00041663,4]
[321029260,1711803040042,-976.38140538,0.00041663,60]
[321029262,1711803040051,-500.0,0.00041663,4]
[321029264,1711803040061,-500.0,0.00041663,4]
[321029266,1711803040070,-500.0,0.00041663,4]
[321029267,1711803040080,-500.0,0.00041663,4]
[321029268,1711803040090,-392.49444216,0.00041663,4]
[321029269,1711803040099,-500.0,0.00041663,4]
[321029270,1711803040109,-500.0,0.00041663,4]
[321029272,1711803040118,-500.0,0.00041663,4]
[321029274,1711803040128,-409.95661524,0.00041663,4]
[321029276,1711803040139,-500.0,0.00041663,4]
[321029278,1711803040151,-500.0,0.00041663,4]
[321029280,1711803040161,-500.0,0.00041663,4]
[321029282,1711803040170,-500.0,0.00041663,4]
[321029285,1711803040179,-500.0,0.00041663,4]
[321029287,1711803040189,-500.0,0.00041663,4]
[321029288,1711803040199,-500.0,0.00041663,4]
[321029290,1711803040208,-500.0,0.00041663,4]
[321029293,1711803040220,-500.0,0.00041663,4]
[321029295,1711803040230,-523.7235122,0.00041663,4]
[321029297,1711803040239,-517.36710514,0.00041663,4]
[321029299,1711803040249,-500.0,0.00041663,4]
[321029301,1711803040258,-500.0,0.00041663,4]
[321029303,1711803040268,-512.36119267,0.00041663,4]
[321029305,1711803040277,-500.0,0.00041663,4]
[321029307,1711803040286,-500.0,0.00041663,4]
[321029309,1711803040295,-500.0,0.00041663,4]
[321029311,1711803040304,-524.48351115,0.00041663,4]
[321029313,1711803040313,-500.0,0.00041663,4]
[321029315,1711803040322,-500.0,0.00041663,4]
[321029317,1711803040333,-507.65750782,0.00041663,4]
[321029319,1711803040343,-500.0,0.00041663,4]
[321029321,1711803040352,-500.0,0.00041663,4]
[321029323,1711803040361,-500.0,0.00041663,4]
[321029324,1711803040370,-500.0,0.00041663,4]
[321029325,1711803040379,-500.0,0.00041663,4]
[321029326,1711803040388,-500.0,0.00041663,4]
[321029327,1711803040398,-512.42622866,0.00041663,4]
[321029328,1711803040407,-500.0,0.00041663,4]
[321029329,1711803040417,-813.38,0.00041663,4]
[321029330,1711803040427,-500.0,0.00041663,4]
[321029331,1711803040436,-500.0,0.00041663,4]
[321029332,1711803040446,-510.51214593,0.00041663,4]
[321029333,1711803040455,-500.0,0.00041663,2]
[321029334,1711803040465,-500.0,0.00041663,4]
[321029335,1711803040474,-500.0,0.00041663,4]
[321029336,1711803040483,-584.04849864,0.00041663,4]
[321029337,1711803040493,-500.0,0.00041663,4]
[321029338,1711803040503,-500.0,0.00041663,4]
[321029339,1711803040512,-500.0,0.00041663,4]
[321029340,1711803040522,-500.0,0.00041663,4]
[321029341,1711803040531,-500.0,0.00041663,4]
[321029342,1711803040541,-885.89,0.00041663,4]
[321029343,1711803040550,-500.0,0.00041663,4]
[321029344,1711803040560,-500.0,0.00041663,4]
[321029345,1711803040569,-500.0,0.00041663,4]
[321029346,1711803040579,-500.0,0.00041663,4]
[321029347,1711803040589,-500.0,0.00041663,4]
[321029348,1711803040599,-500.0,0.00041663,4]
[321029349,1711803040608,-500.0,0.00041663,4]
[321029350,1711803040617,-500.0,0.00041663,4]
[321029351,1711803040627,-4111.75,0.00041663,4]
[321029352,1711803040636,-500.0,0.00041663,4]
[321029353,1711803040645,-500.0,0.00041663,4]
[321029354,1711803040655,-500.0,0.00041663,4]
[321029355,1711803040664,-500.0,0.00041663,4]
[321029356,1711803040674,-500.0,0.00041663,4]
[321029357,1711803040684,-500.0,0.00041663,4]
[321029358,1711803040693,-500.0,0.00041663,4]
[321029359,1711803040703,-3150.23,0.00041663,4]
[321029360,1711803040712,-500.0,0.00041663,4]
[321029361,1711803040721,-500.0,0.00041663,4]
[321029362,1711803040730,-500.0,0.00041663,4]
[321029363,1711803040740,-500.0,0.00041663,4]
[321029364,1711803040749,-500.0,0.00041663,4]
[321029365,1711803040758,-504.95759792,0.00041663,4]
[321029366,1711803040767,-508.84875575,0.00041663,4]
[321029367,1711803040777,-500.0,0.00041663,4]
[321029368,1711803040788,-500.0,0.00041663,4]
[321029369,1711803040798,-500.0,0.00041663,4]
[321029370,1711803040810,-508.83324345,0.00041663,4]
[321029371,1711803040821,-500.0,0.00041663,4]
[321029372,1711803040832,-500.0,0.00041663,4]
[321029373,1711803040841,-500.0,0.00041663,4]
[321029374,1711803040850,-948.22,0.00041663,4]
[321029375,1711803040860,-500.0,0.00041663,4]
[321029376,1711803040869,-513.70876318,0.00041663,4]
[321029377,1711803040879,-500.0,0.00041663,4]
[321029378,1711803040888,-570.5,0.00041663,4]
[321029379,1711803040897,-500.0,0.00041663,4]
[321029380,1711803040907,-513.10698607,0.00041663,4]
[321029381,1711803040916,-500.0,0.00041663,4]
[321029382,1711803040925,-500.0,0.00041663,4]
[321029383,1711803040934,-500.0,0.00041663,4]
[321029384,1711803040943,-500.0,0.00041663,4]
[321029385,1711803040955,-512.66202891,0.00041663,4]
[321029386,1711803040965,-749.33,0.00041663,4]
[321029388,1711803040974,-500.0,0.00041663,4]
[321029390,1711803040984,-500.0,0.00041663,4]
[321029392,1711803040993,-500.0,0.00041663,4]
[321029394,1711803041003,-510.14391606,0.00041663,4]
[321029396,1711803041013,-500.0,0.00041663,4]
[321029398,1711803041022,-500.0,0.00041663,4]
[321029400,1711803041032,-21534.84,0.00041663,4]
[321029402,1711803041041,-500.0,0.00041663,4]
[321029404,1711803041050,-500.0,0.00041663,4]
[321029406,1711803041060,-500.0,0.00041663,4]
[321029408,1711803041069,-511.32181913,0.00041663,4]
[321029410,1711803041078,-500.0,0.00041663,4]
[321029412,1711803041088,-500.0,0.00041663,4]
[321029413,1711803041099,-500.0,0.00041663,4]
[321029414,1711803041108,-2295.25,0.00041663,4]
[321029415,1711803041118,-518.01469267,0.00041663,4]
[321029416,1711803041127,-500.0,0.00041663,4]
[321029417,1711803041137,-500.0,0.00041663,4]
[321029418,1711803041150,-500.0,0.00041663,4]
[321029419,1711803041160,-212.0,0.00041663,4]
[321029420,1711803041170,-500.0,0.00041663,4]
[321029421,1711803041179,-500.0,0.00041663,4]
[321029422,1711803041190,-500.0,0.00041663,4]
[321029423,1711803041199,-500.0,0.00041663,4]
[321029424,1711803041209,-500.0,0.00041663,4]
[321029425,1711803041219,-500.0,0.00041663,4]
[321029426,1711803041229,-500.0,0.00041663,4]
[321029427,1711803041239,-500.0,0.00041663,4]
[321029428,1711803041248,-500.0,0.00041663,4]
[321029429,1711803041258,-500.0,0.00041663,4]
[321029430,1711803041268,-500.0,0.00041663,4]
[321029431,1711803041277,-500.0,0.00041663,4]
[321029432,1711803041286,-500.0,0.00041663,4]
[321029433,1711803041295,-504.25146336,0.00041663,4]
[321029434,1711803041305,-500.0,0.00041663,4]
[321029435,1711803041315,-500.0,0.00041663,4]
[321029436,1711803041326,-518.45603175,0.00041663,4]
[321029437,1711803041337,-500.0,0.00041663,4]
[321029438,1711803041348,-511.49734511,0.00041663,4]
[321029439,1711803041358,-500.0,0.00041663,4]
[321029440,1711803041368,-513.49432618,0.00041663,4]
[321029441,1711803041377,-500.0,0.00041663,4]
[321029442,1711803041386,-1281.06,0.00041663,4]
[321029443,1711803041396,-516.7090383,0.00041663,4]
[321029444,1711803041405,-500.0,0.00041663,4]
[321029445,1711803041415,-500.0,0.00041663,4]
[321029446,1711803041424,-500.0,0.00041663,4]
[321029447,1711803041434,-795.98,0.00041663,4]
[321029448,1711803041444,-500.0,0.00041663,4]
[321029449,1711803041453,-506.69634863,0.00041663,4]
[321029450,1711803041464,-500.0,0.00041663,4]
[321029451,1711803041618,-822.16,0.00041663,4]
[321029452,1711803041629,-525.85570601,0.00041663,4]
[321029453,1711803041639,-500.0,0.00041663,4]
[321029454,1711803041652,-500.0,0.00041663,4]
[321029455,1711803041661,-2801.82,0.00041663,4]
[321029456,1711803041671,-1169.1,0.00041663,4]
[321029457,1711803041680,-500.0,0.00041663,4]
[321029458,1711803041689,-500.0,0.00041663,4]
[321029459,1711803041698,-500.0,0.00041663,4]
[321029460,1711803041707,-693.56,0.00041663,4]
[321029461,1711803041717,-856.85,0.00041663,4]
[321029462,1711803041726,-500.0,0.00041663,4]
[321029463,1711803041735,-500.0,0.00041663,4]
[321029464,1711803041744,-521.879138,0.00041663,4]
[321029465,1711803041753,-500.0,0.00041663,4]
[321029466,1711803041762,-500.0,0.00041663,4]
[321029467,1711803041772,-500.0,0.00041663,4]
[321029468,1711803041781,-500.0,0.00041663,4]
[321029469,1711803041790,-500.0,0.00041663,4]
[321029470,1711803041800,-500.0,0.00041663,4]
[321029471,1711803041809,-937.74,0.00041663,4]
[321029472,1711803041819,-1771.58,0.00041663,4]
[321029473,1711803041828,-500.0,0.00041663,4]
[321029474,1711803041837,-500.0,0.00041663,4]
[321029475,1711803041847,-500.0,0.00041663,4]
[321029476,1711803041856,-500.0,0.00041663,4]
[321029477,1711803041865,-500.0,0.00041663,4]
[321029478,1711803041874,-500.0,0.00041663,4]
[321029479,1711803041883,-500.0,0.00041663,4]
[321029480,1711803041893,-785.64,0.00041663,4]
[321029481,1711803041902,-1246.1,0.00041663,4]
[321029482,1711803041911,-500.0,0.00041663,4]
[321029483,1711803041920,-500.0,0.00041663,4]
[321029484,1711803041930,-500.0,0.00041663,4]
[321029485,1711803041939,-2006.66,0.00041663,4]
[321029486,1711803041948,-500.0,0.00041663,4]
[321029487,1711803041957,-500.0,0.00041663,4]
[321029488,1711803041967,-500.0,0.00041663,4]
[321029489,1711803041976,-3946.65,0.00041663,4]
[321029490,1711803041986,-506.94976692,0.00041663,4]
[321029491,1711803041995,-524.6,0.00041663,4]
[321029492,1711803042004,-500.0,0.00041663,4]
[321029493,1711803042019,-500.0,0.00041663,4]
[321029494,1711803042029,-1363.66,0.00041663,4]
[321029495,1711803042039,-150.0,0.00041663,4]
[321029496,1711803042050,-1034.32,0.00041663,4]
[321029497,1711803042060,-500.0,0.00041663,4]
[321029498,1711803042069,-500.0,0.00041663,4]
[321029499,1711803042079,-500.0,0.00041663,4]
[321029500,1711803042091,-500.0,0.00041663,4]
[321029501,1711803042101,-500.0,0.00041663,4]
[321029502,1711803042110,-5121.55399873,0.00041663,4]
[321029503,1711803042119,-5177.16,0.00041663,4]
[321029504,1711803042130,-1506.17,0.00041663,4]
[321029505,1711803042142,-1506.17,0.00041663,4]
[321029506,1711803042152,-500.0,0.00041663,4]
[321029507,1711803042162,-500.0,0.00041663,4]
[321029508,1711803042171,-3299.68,0.00041663,4]
[321029509,1711803042180,-519.28478424,0.00041663,4]
[321029510,1711803042190,-500.0,0.00041663,4]
[321029511,1711803042199,-500.0,0.00041663,4]
[321029512,1711803042209,-2002.29,0.00041663,4]
[321029513,1711803042219,-500.0,0.00041663,4]
[321029514,1711803042228,-500.0,0.00041663,4]
[321029515,1711803042238,-500.0,0.00041663,4]
[321029516,1711803042247,-500.0,0.00041663,4]
[321029517,1711803042257,-4982.4,0.00041663,4]
[321029518,1711803042266,-3127.29,0.00041663,4]
[321029519,1711803042276,-500.0,0.00041663,4]
[321029520,1711803042285,-500.0,0.00041663,4]
[321029521,1711803042295,-500.0,0.00041663,4]
[321029522,1711803042306,-2062.41,0.00041663,4]
[321029523,1711803042315,-500.0,0.00041663,4]
[321029524,1711803042325,-4477.63,0.00041663,4]
[321029525,1711803042334,-500.0,0.00041663,4]
[321029526,1711803042344,-500.0,0.00041663,4]
[321029527,1711803042353,-3072.89,0.00041663,4]
[321029528,1711803042363,-500.0,0.00041663,4]
[321029529,1711803042373,-500.0,0.00041663,4]
[321029530,1711803042382,-500.0,0.00041663,4]
[321029531,1711803042392,-500.0,0.00041663,4]
[321029532,1711803042401,-500.0,0.00041663,4]
[321029533,1711803042411,-764.59,0.00041663,4]
[321029534,1711803042420,-500.0,0.00041663,4]
[321029535,1711803042430,-1508.68,0.00041663,4]
[321029536,1711803042440,-500.0,0.00041663,4]
[321029537,1711803042449,-500.0,0.00041663,4]
[321029538,1711803042459,-960.45,0.00041663,4]
[321029539,1711803042469,-500.0,0.00041663,4]
[321029540,1711803042478,-500.0,0.00041663,4]
[321029541,1711803042488,-500.0,0.00041663,4]
[321029542,1711803042497,-556.56,0.00041663,4]
[321029543,1711803042506,-642.79,0.00041663,4]
[321029544,1711803042516,-500.0,0.00041663,4]
[321029545,1711803042526,-1032.8,0.00041663,4]
[321029546,1711803042535,-4727.83,0.00041663,4]
[321029547,1711803042549,-500.0,0.00041663,4]
[321029548,1711803042558,-500.0,0.00041663,4]
[321029549,1711803042567,-487.37531425,0.00041663,4]
[321029550,1711803042577,-500.0,0.00041663,4]
[321029551,1711803042588,-684.84,0.00041663,4]
[321029552,1711803042597,-524.71536656,0.00041663,4]
[321029553,1711803042606,-500.0,0.00041663,4]
[321029554,1711803042616,-500.0,0.00041663,4]
[321029555,1711803042626,-500.0,0.00041663,4]
[321029556,1711803042637,-500.0,0.00041663,4]
[321029557,1711803042648,-500.0,0.00041663,4]
[321029558,1711803042658,-1093.19,0.00041663,4]
[321029559,1711803042668,-636.19,0.00041663,4]
[321029560,1711803042677,-500.0,0.00041663,4]
[321029561,1711803042687,-2515.49,0.00041663,4]
[321029562,1711803042697,-505.03,0.00041663,2]
[321029563,1711803042707,-500.0,0.00041663,4]
[321029564,1711803042717,-500.0,0.00041663,4]
[321029565,1711803042727,-500.0,0.00041663,4]
[321029566,1711803042737,-500.0,0.00041663,4]
[321029567,1711803042748,-500.0,0.00041663,4]
[321029568,1711803042758,-500.0,0.00041664,4]
[321029570,1711803042769,-434.09817101,0.00041664,4]
[321029572,1711803042778,-500.0,0.00041664,4]
[321029574,1711803042788,-500.0,0.00041664,4]
[321029575,1711803042798,-447.02331554,0.00041664,4]
[321029576,1711803042807,-500.0,0.00041664,4]
[321029577,1711803042817,-525.44,0.00041664,4]
[321029578,1711803042826,-500.0,0.00041664,4]
[321029579,1711803042837,-500.0,0.00041664,4]
[321029580,1711803042847,-506.71409682,0.00041664,4]
[321029581,1711803042856,-500.0,0.00041664,4]
[321029582,1711803042866,-510.35321526,0.00041664,4]
[321029583,1711803042875,-500.0,0.00041664,4]
[321029584,1711803042885,-338.36372827,0.00041664,4]
[321029585,1711803042894,-500.0,0.00041664,4]
[321029586,1711803042904,-500.0,0.00041664,2]
[321029587,1711803042913,-505.11875087,0.00041664,4]
[321029588,1711803042923,-500.0,0.00041664,4]
[321029589,1711803042932,-500.0,0.00041664,4]
[321029590,1711803042942,-502.02900859,0.00041664,4]
[321029591,1711803042951,-500.0,0.00041664,4]
[321029592,1711803042960,-508.32410613,0.00041664,4]
[321029593,1711803042970,-512.08092012,0.00041664,4]
[321029594,1711803042981,-581.69,0.00041664,4]
[321029595,1711803042991,-500.0,0.00041664,4]
[321029596,1711803043003,-531.23140958,0.00041664,4]
[321029597,1711803043013,-736.56,0.00041664,4]
[321029598,1711803043023,-500.0,0.00041664,4]
[321029599,1711803043032,-500.0,0.00041664,4]
[321029600,1711803043042,-500.0,0.00041664,4]
[321029601,1711803043051,-500.0,0.00041664,4]
[321029602,1711803043061,-500.0,0.00041664,4]
[321029603,1711803043070,-500.0,0.00041664,4]
[321029604,1711803043080,-500.0,0.00041664,4]
[321029605,1711803043090,-500.0,0.00041664,4]
[321029606,1711803043099,-500.0,0.00041664,4]
[321029607,1711803043109,-502.01,0.00041664,4]
[321029608,1711803043118,-500.0,0.00041664,4]
[321029609,1711803043128,-514.89,0.00041664,4]
[321029610,1711803043140,-504.38147067,0.00041664,4]
[321029611,1711803043151,-500.0,0.00041664,4]
[321029612,1711803043161,-734.52,0.00041664,4]
[321029613,1711803043171,-370.274934,0.00041664,4]
[321029614,1711803043181,-500.0,0.00041664,4]
[321029615,1711803043190,-796.33,0.00041664,4]
[321029616,1711803043199,-500.0,0.00041664,4]
[321029617,1711803043209,-500.0,0.00041664,4]
[321029618,1711803043220,-500.0,0.00041664,4]
[321029619,1711803043229,-500.0,0.00041664,2]
[321029620,1711803043239,-500.0,0.00041664,4]
[321029621,1711803043250,-508.0337423,0.00041664,4]
[321029622,1711803043259,-500.0,0.00041664,4]
[321029623,1711803043268,-507.37810302,0.00041664,4]
[321029624,1711803043278,-500.0,0.00041664,4]
[321029625,1711803043287,-500.0,0.00041664,4]
[321029626,1711803043296,-507.21051638,0.00041664,4]
[321029627,1711803043305,-604.79,0.00041664,4]
[321029628,1711803043316,-500.0,0.00041664,4]
[321029629,1711803043325,-500.0,0.00041664,4]
[321029630,1711803043335,-653.08,0.00041664,4]
[321029631,1711803043345,-500.0,0.00041664,4]
[321029632,1711803043354,-500.0,0.00041664,4]
[321029633,1711803043363,-500.0,0.00041664,4]
[321029634,1711803043373,-500.0,0.00041664,4]
[321029635,1711803043382,-500.0,0.00041664,4]
[321029636,1711803043392,-500.0,0.00041664,4]
[321029637,1711803043402,-500.0,0.00041664,4]
[321029638,1711803043411,-500.0,0.00041664,4]
[321029639,1711803043421,-500.0,0.00041664,4]
[321029640,1711803043431,-500.0,0.00041664,4]
[321029641,1711803043440,-500.0,0.00041664,4]
[321029642,1711803043450,-555.09,0.00041664,4]
[321029643,1711803043459,-500.0,0.00041664,4]
[321029644,1711803043468,-500.0,0.00041664,4]
[321029645,1711803043478,-500.0,0.00041664,4]
[321029646,1711803043487,-565.27,0.00041664,4]
[321029647,1711803043498,-500.0,0.00041664,4]
[321029648,1711803043508,-500.0,0.00041664,4]
[321029649,1711803043518,-500.0,0.00041664,4]
[321029650,1711803043528,-500.0,0.00041664,4]
[321029651,1711803043537,-645.85,0.00041664,4]
[321029652,1711803043547,-500.0,0.00041664,4]
[321029653,1711803043556,-500.0,0.00041664,4]
[321029663,1711803043699,-500.0,0.00041664,4]
[321029665,1711803043708,-500.0,0.00041664,4]
[321029667,1711803043717,-500.0,0.00041664,4]
[321029668,1711803043726,-500.0,0.00041664,4]
[321029669,1711803043735,-500.0,0.00041664,4]
[321029670,1711803043745,-500.0,0.00041664,4]
[321029671,1711803043754,-868.78,0.00041664,4]
[321029672,1711803043763,-508.73870914,0.00041664,4]
[321029673,1711803043773,-500.0,0.00041664,4]
[321029674,1711803043782,-500.0,0.00041664,4]
[321029675,1711803043791,-509.57,0.00041664,4]
[321029676,1711803043800,-816.86,0.00041664,4]
[321029677,1711803043810,-500.0,0.00041664,4]
[321029678,1711803043819,-500.0,0.00041664,4]
[321029679,1711803043828,-500.0,0.00041664,4]
[321029680,1711803043838,-500.0,0.00041664,4]
[321029681,1711803043848,-500.0,0.00041664,4]
[321029682,1711803043857,-503.63633984,0.00041664,4]
[321029683,1711803043867,-500.0,0.00041664,4]
[321029684,1711803043875,-500.0,0.00041664,4]
[321029685,1711803043885,-506.73092976,0.00041664,4]
[321029686,1711803043893,-500.0,0.00041664,4]
[321029687,1711803043903,-267.66,0.00041664,4]
[321029688,1711803043912,-513.46372449,0.00041664,4]
[321029689,1711803043921,-598.64,0.00041664,4]
[321029690,1711803043931,-3164.42,0.00041664,4]
[321029691,1711803043940,-500.0,0.00041664,4]
[321029692,1711803043952,-500.0,0.00041664,4]
[321029693,1711803043962,-168.41369189,0.00041664,4]
[321029694,1711803043971,-517.0914889,0.00041664,4]
[321029695,1711803043980,-500.0,0.00041664,4]
[321029696,1711803043991,-500.0,0.00041664,4]
[321029697,1711803044000,-500.0,0.00041664,4]
[321029698,1711803044010,-1208.47,0.00041664,4]
[321029699,1711803044020,-507.30092242,0.00041664,4]
[321029700,1711803044029,-500.0,0.00041664,4]
[321029701,1711803044038,-500.0,0.00041664,4]
[321029702,1711803044047,-500.0,0.00041664,4]
[321029703,1711803044056,-529.01263379,0.00041664,4]
[321029704,1711803044066,-500.0,0.00041664,4]
[321029705,1711803044076,-527.34409412,0.00041664,4]
[321029706,1711803044087,-546.16,0.00041664,4]
[321029707,1711803044096,-500.0,0.00041664,4]
[321029708,1711803044107,-726.39,0.00041664,4]
[321029709,1711803044115,-1152.1,0.00041664,4]
[321029710,1711803044125,-500.0,0.00041664,4]
[321029711,1711803044135,-500.0,0.00041664,4]
[321029712,1711803044145,-629.69,0.00041664,4]
[321029713,1711803044154,-1077.69,0.00041664,4]
[321029714,1711803044163,-550.3,0.00041664,4]
[321029715,1711803044174,-4312.37,0.00041664,4]
[321029716,1711803044183,-500.0,0.00041664,4]
[321029717,1711803044192,-500.0,0.00041664,4]
[321029718,1711803044201,-500.0,0.00041664,4]
[321029719,1711803044210,-4708.9,0.00041664,4]
[321029720,1711803044220,-2172.33,0.00041664,4]
[321029721,1711803044229,-1148.61,0.00041664,4]
[321029722,1711803044238,-513.70651482,0.00041664,4]
[321029723,1711803044247,-1089.44,0.00041664,4]
[321029724,1711803044257,-510.74743864,0.00041664,4]
[321029725,1711803044266,-500.0,0.00041664,4]
[321029726,1711803044275,-3452.17,0.00041664,4]
[321029727,1711803044284,-581.47,0.00041664,4]
[321029728,1711803044294,-500.0,0.00041664,4]
[321029729,1711803044303,-8438.11,0.00041664,4]
[321029730,1711803044312,-1472.81,0.00041664,4]
[321029731,1711803044321,-500.0,0.00041664,4]
[321029732,1711803044330,-1051.72,0.00041664,4]
[321029733,1711803044340,-824.09,0.00041664,4]
[321029734,1711803044350,-654.91,0.00041664,4]
[321029735,1711803044359,-6226.77,0.00041664,4]
[321029736,1711803044368,-500.0,0.00041664,4]
[321029737,1711803044377,-744.17,0.00041664,4]
[321029738,1711803044386,-4243.88,0.00041664,4]
[321029739,1711803044396,-500.0,0.00041664,4]
[321029740,1711803044405,-500.0,0.00041664,4]
[321029741,1711803044414,-500.0,0.00041664,4]
[321029742,1711803044423,-944.84,0.00041664,4]
[321029743,1711803044434,-3547.06,0.00041664,4]
[321029744,1711803044444,-1266.91,0.00041664,4]
[321029745,1711803044454,-500.0,0.00041664,4]
[321029746,1711803044463,-500.0,0.00041664,4]
[321029747,1711803044473,-3376.77,0.00041664,4]
[321029748,1711803044482,-755.55,0.00041664,4]
[321029749,1711803044491,-516.95263536,0.00041664,4]
[321029750,1711803044500,-1207.46,0.00041664,4]
[321029751,1711803044510,-1583.11,0.00041664,4]
[321029752,1711803044519,-521.49654277,0.00041664,4]
[321029753,1711803044529,-3396.1,0.00041664,4]
[321029754,1711803044538,-883.66,0.00041664,4]
[321029755,1711803044548,-5376.56,0.00041664,4]
[321029756,1711803044558,-1000.0,0.00041664,4]
[321029757,1711803044567,-500.0,0.00041664,4]
[321029758,1711803044577,-5749.38,0.00041664,4]
[321029759,1711803044586,-903.19,0.00041664,4]
[321029760,1711803044596,-1001.61,0.00041664,4]
[321029761,1711803044605,-500.0,0.00041664,4]
[321029762,1711803044614,-1146.85,0.00041664,4]
[321029763,1711803044623,-1830.55,0.00041664,4]
[321029764,1711803044633,-500.0,0.00041664,4]
[321029765,1711803044643,-2065.82,0.00041664,4]
[321029766,1711803044652,-514.89662259,0.00041664,4]
[321029767,1711803044662,-1817.24,0.00041664,4]
[321029768,1711803044671,-3683.66,0.00041664,4]
[321029769,1711803044680,-7238.44,0.00041664,4]
[321029770,1711803044689,-500.0,0.00041664,4]
[321029771,1711803044700,-3164.86,0.00041664,4]
[321029772,1711803044709,-3640.23,0.00041664,4]
[321029773,1711803044718,-1058.9,0.00041664,4]
[321029774,1711803044728,-500.0,0.00041664,4]
[321029775,1711803044738,-15850.79,0.00041664,4]
[321029776,1711803044747,-3418.7,0.00041664,4]
[321029777,1711803044757,-500.0,0.00041664,4]
[321029778,1711803044767,-500.0,0.00041664,4]
[321029779,1711803044776,-4521.29,0.00041664,4]
[321029780,1711803044785,-500.0,0.00041664,4]
[321029781,1711803044794,-4215.18,0.00041664,4]
[321029782,1711803044805,-581.99,0.00041664,4]
[321029783,1711803044814,-500.0,0.00041664,4]
[321029784,1711803044823,-500.0,0.00041664,4]